bitfinex/quotes_ETHUSD_20250721
["timestamp","ask_amount","ask_price","bid_price","bid_amount"]
[1753109133193,2.59378089,3855.4,3855.1,0.1296]
[1753109133395,20.724,3858.1,3854.3,0.90268866]
[1753109133396,0.8168,3855.2,3854.3,0.12628866]
[1753109133621,3.41072812,3855.2,3854.4,0.02594437]
[1753109133826,2.59443752,3854.4,3854.3,0.12628866]
[1753109134050,2.5942356,3854.7,3854.3,0.12628866]
[1753109134332,0.82705281,3855.1,3854.3,0.1522337]
[1753109134639,0.4418,3855.1,3854.7,0.1296]
[1753109135127,0.8168,3855.2,3855.0,0.1296]
[1753109135347,1.2547,3855.6,3855.0,0.1296]
[1753109135478,0.8129,3855.6,3855.1,0.02593966]
[1753109135683,0.8129,3855.6,3855.5,0.1296]
[1753109135920,0.8129,3856.1,3855.6,2.59362139]
[1753109136091,0.13843,3856.0,3855.9,0.1296]
[1753109136296,0.8129,3856.5,3856.1,2.59328407]
[1753109136494,0.8129,3856.5,3855.9,4.39253428]
[1753109136731,0.00688007,3856.9,3856.4,0.1296]
[1753109136883,0.4418,3856.8,3856.4,0.1296]
[1753109137077,0.4418,3856.7,3856.4,0.1296]
[1753109137283,0.00688007,3856.9,3856.4,0.1296]
[1753109137284,0.30415563,3856.6,3856.4,0.1296]
[1753109137619,0.00688007,3856.9,3856.4,0.1296]
[1753109137934,0.00688007,3856.9,3855.9,0.02593428]
[1753109137935,2.59510584,3856.4,3855.9,0.02593428]
[1753109138096,0.4418,3856.3,3856.1,0.1296]
[1753109138300,0.4418,3856.3,3855.8,0.1296]
[1753109138513,0.4418,3856.2,3855.8,0.1296]
[1753109138725,1.07849672,3856.1,3855.3,4.234]
[1753109139033,3.03516439,3856.0,3855.4,0.1296]
[1753109139237,0.4418,3856.0,3855.4,0.1296]
[1753109139701,2.59369731,3855.5,3855.4,0.1296]
[1753109140028,2.59390072,3855.2,3854.8,0.02594168]
[1753109140237,3.03551285,3855.5,3855.1,0.1296]
[1753109140545,0.30355129,3855.4,3855.1,0.1296]
[1753109140690,0.30355129,3855.4,3854.8,0.02594168]
[1753109140691,2.59369731,3855.5,3854.8,0.02594168]
[1753109140886,2.59355078,3855.8,3855.3,0.1296]
[1753109140887,2.59376458,3855.4,3855.3,0.1296]
[1753109141098,2.59410101,3854.9,3854.8,0.02594168]
[1753109141296,2.59415734,3854.9,3854.6,4.231]
[1753109141667,2.59415734,3854.9,3854.8,0.1296]
[1753109141830,2.59415734,3854.9,3854.1,0.02]
[1753109141831,2.59457215,3854.2,3854.1,0.02]
[1753109142186,3.84867215,3854.2,3854.1,0.02]
[1753109143439,1.2541,3854.2,3854.1,0.02]
[1753109143606,0.8123,3854.2,3854.1,0.02]
[1753109143996,1.2541,3854.2,3854.1,0.02]
[1753109144246,3.84867215,3854.2,3854.1,0.02]
[1753109144400,1.89841489,3854.2,3854.1,0.02]
[1753109144598,3.84867215,3854.2,3854.1,0.02]
[1753109145791,0.8123,3854.2,3854.1,0.02]
[1753109145991,3.40687215,3854.2,3854.1,0.02]
[1753109146229,3.84867215,3854.2,3854.1,0.02]
[1753109147038,3.42624551,3853.2,3853.1,0.02]
[1753109147607,3.88494551,3853.2,3853.1,0.02]
[1753109147942,8.11294551,3853.2,3853.1,0.02]
[1753109148234,8.11294551,3853.2,3851.6,0.11358817]
[1753109148235,2.596024,3852.1,3851.6,0.11358817]
[1753109148434,1.2497,3853.1,3851.5,2.59639101]
[1753109148640,2.59553307,3852.8,3851.9,2.59608881]
[1753109148846,0.791,3853.1,3852.3,2.59579719]
[1753109149047,0.791,3853.1,3852.4,0.02595784]
[1753109149348,0.786,3853.1,3852.4,2.59577115]
[1753109149492,0.786,3853.1,3852.8,2.59549726]
[1753109149699,0.786,3853.1,3852.7,2.59557392]
[1753109149893,0.786,3853.1,3852.5,0.02595717]
[1753109150326,0.8426954,3853.0,3852.3,2.59584275]
[1753109150600,0.8426954,3853.0,3851.9,2.6220649]
[1753109150929,0.8426954,3853.0,3851.9,2.62207538]
[1753109151234,0.8426954,3853.0,3851.9,0.02596121]
[1753109151447,2.59572952,3852.5,3851.9,0.02596121]
[1753109151622,2.8553621,3852.4,3851.8,0.19726499]
[1753109151805,0.1296,3852.6,3852.0,0.1296]
[1753109152006,0.4587,3853.2,3852.4,2.59572273]
[1753109152007,3.0539516,3853.2,3852.4,2.59572273]
[1753109152227,1.2883,3853.2,3852.9,0.1296]
[1753109152396,2.59544819,3852.9,3852.7,0.1296]
[1753109152601,2.59539487,3853.0,3852.7,0.1296]
[1753109152796,0.8296,3853.2,3852.7,0.1296]
[1753109153012,0.8296,3853.2,3851.8,0.19825716]
[1753109153013,0.1296,3852.9,3852.4,0.001]
[1753109153304,2.59571706,3852.5,3852.4,0.001]
[1753109153739,2.72519105,3852.7,3852.4,2.59677425]
[1753109153740,0.1296,3852.7,3852.4,2.59677425]
[1753109153914,0.4587,3853.3,3852.4,0.001]
[1753109154245,0.4587,3853.3,3852.4,2.59678102]
[1753109154456,0.4587,3853.3,3852.5,0.02595717]
[1753109154651,0.8287,3853.6,3853.1,2.59524913]
[1753109154957,0.4587,3853.5,3852.4,0.001]
[1753109155252,0.4587,3853.5,3852.4,0.02695784]
[1753109155453,2.59527305,3853.2,3852.4,0.001]
[1753109155638,2.5953284,3853.1,3852.4,0.001]
[1753109155960,0.802,3852.9,3852.4,0.001]
[1753109156419,0.802,3852.9,3852.6,2.59562728]
[1753109156620,0.4587,3853.5,3852.4,0.001]
[1753109156621,0.802,3853.3,3852.4,0.001]
[1753109156820,2.59552337,3852.8,3852.4,0.001]
[1753109157022,2.59571706,3852.5,3852.4,0.001]
[1753109157350,3.38681706,3852.5,3852.4,0.001]
[1753109157645,4.23006877,3852.5,3852.4,0.001]
[1753109159332,4.23006877,3852.5,3852.4,1e-08]
[1753109159546,8.48306877,3852.5,3852.4,1e-08]
[1753109159709,8.48206877,3852.5,3852.4,1e-08]
[1753109159914,4.23006877,3852.5,3852.4,1e-08]
[1753109160132,8.48206877,3852.5,3852.4,1e-08]
[1753109160713,1.2498,3852.5,3852.4,1e-08]
[1753109160941,2.5951753,3853.4,3852.4,1e-08]
[1753109161108,0.4587,3852.5,3852.4,1e-08]
[1753109161315,3.84551706,3852.5,3852.4,1e-08]
[1753109161538,4.91492837,3852.5,3852.4,1e-08]
[1753109161741,0.7911,3851.7,3851.6,0.001]
[1753109161923,7.64135619,3851.7,3851.6,0.001]
[1753109162138,2.59659326,3851.2,3850.8,0.001]
[1753109162351,3.38769326,3851.2,3850.8,0.001]
[1753109162525,1.84822023,3851.2,3850.8,0.001]
[1753109162851,5.5058,3851.2,3850.8,0.001]
[1753109163074,8.10239326,3851.2,3850.8,0.001]
[1753109163713,3.40799555,3850.9,3850.8,0.001]
[1753109164148,8.12869555,3850.9,3850.8,0.001]
[1753109164364,8.12869555,3850.9,3850.8,1e-08]
[1753109164365,9.4608955,3850.9,3850.8,1e-08]
[1753109164573,9.4608955,3850.9,3850.1,0.02]
[1753109164574,3.39886767,3850.2,3850.1,0.02]
[1753109164767,7.65986767,3850.2,3850.1,0.02]
[1753109165065,8.11856767,3850.2,3850.1,0.02]
[1753109165966,5.5233,3850.2,3850.1,0.02]
[1753109166144,0.8016,3850.2,3850.1,0.02]
[1753109166352,5.0646,3850.2,3850.1,0.02]
[1753109166542,0.8016,3850.2,3850.1,0.02]
[1753109166735,5.0636,3850.2,3850.1,0.02]
[1753109167136,0.8016,3850.2,3850.1,0.02]
[1753109167331,5.0626,3850.2,3850.1,0.02]
[1753109167545,8.63184562,3850.2,3850.1,0.02]
[1753109167750,5.5213,3850.2,3850.1,0.02]
[1753109168349,8.11856767,3850.2,3850.1,0.02]
[1753109168669,3.85756767,3850.2,3850.1,0.02]
[1753109168844,8.11756767,3850.2,3850.1,0.02]
[1753109169335,0.1296,3850.3,3850.1,0.02]
[1753109170363,0.1296,3850.9,3850.3,2.59720021]
[1753109170573,0.1296,3850.9,3850.2,0.5586]
[1753109170736,0.7956,3851.4,3850.9,2.59674121]
[1753109170737,0.9252,3851.4,3850.9,2.59674121]
[1753109170937,0.8248,3851.9,3850.5,0.429]
[1753109171138,0.7742,3852.5,3850.7,0.8093]
[1753109171371,0.7742,3852.5,3851.9,0.1296]
[1753109171372,2.59578444,3852.4,3851.9,0.1296]
[1753109171675,0.34995844,3852.4,3851.9,0.1296]
[1753109171877,2.59519566,3853.3,3851.9,0.32215138]
[1753109172075,4.261,3853.3,3852.5,0.1296]
[1753109172274,0.755,3853.5,3852.8,2.59551495]
[1753109172481,0.1296,3853.6,3852.8,2.75107009]
[1753109172691,0.02,3853.9,3852.8,3.37298517]
[1753109173693,0.02,3853.9,3852.8,3.34703003]
[1753109173983,0.02,3853.9,3852.8,3.18007009]
[1753109174160,2.61478849,3853.9,3852.8,3.18007009]
[1753109174356,2.61478849,3853.9,3852.8,3.15411495]
[1753109174538,0.02,3853.9,3852.8,3.18007009]
[1753109174980,0.02,3853.9,3852.8,3.15411495]
[1753109175667,0.02,3853.9,3852.8,3.18007009]
[1753109176553,0.022,3852.9,3852.8,3.18007009]
[1753109177167,0.022,3852.9,3852.8,3.15411495]
[1753109177546,0.022,3852.9,3852.8,0.5586]
[1753109177880,0.022,3852.9,3852.8,3.18007009]
[1753109178104,0.022,3852.9,3852.8,0.15555514]
[1753109178267,0.022,3852.9,3852.8,0.1296]
[1753109178668,0.022,3852.9,3852.8,2.72511495]
[1753109178870,0.022,3852.9,3852.8,3.20217009]
[1753109179075,0.022,3852.9,3852.8,3.98227009]
[1753109179673,1e-08,3852.9,3852.8,3.98227009]
[1753109180969,1e-08,3852.9,3852.8,8.23127009]
[1753109181173,1e-08,3852.9,3852.8,8.20531495]
[1753109181598,1e-08,3852.9,3852.8,3.17621495]
[1753109181910,1e-08,3852.9,3852.8,4.00491495]
[1753109182085,1e-08,3852.9,3852.8,4.03087009]
[1753109182481,1e-08,3852.9,3852.8,4.22601408]
[1753109182882,0.002,3853.7,3852.8,13.70302508]
[1753109183111,0.002,3853.7,3853.6,2.72457612]
[1753109183287,0.002,3853.7,3853.6,6.99652588]
[1753109183485,0.002,3853.7,3853.6,0.5807]
[1753109183685,0.002,3853.7,3853.6,7.44962588]
[1753109183912,0.002,3853.7,3853.6,7.42367612]
[1753109185910,0.00488007,3856.9,3856.7,2.59289029]
[1753109186113,0.00488007,3856.9,3856.7,6.83589029]
[1753109186272,0.00488007,3856.9,3856.7,7.28699029]
[1753109186678,0.00488007,3856.9,3856.7,3.04399029]
[1753109186981,0.00488007,3856.9,3856.7,7.33291919]
[1753109187175,0.00488007,3856.9,3856.7,7.30699029]
[1753109187508,0.00488007,3856.9,3856.7,8.28150314]
[1753109187509,1e-08,3856.8,3856.7,8.28150314]
[1753109187708,1e-08,3856.8,3856.7,4.01950314]
[1753109188006,1e-08,3856.8,3856.7,8.28750314]
[1753109188206,1e-08,3856.8,3856.7,4.01950314]
[1753109188408,1e-08,3856.8,3856.7,2.81753204]
[1753109188799,1e-08,3856.8,3856.7,2.79160314]
[1753109189114,1e-08,3856.8,3856.7,2.81753204]
[1753109189619,1e-08,3856.8,3856.7,0.19871285]
[1753109189777,1e-08,3856.8,3855.6,0.766]
[1753109190112,1e-08,3856.8,3855.9,2.59340767]
[1753109190269,0.25976504,3856.8,3855.6,1.2171]
[1753109190475,2.59344047,3855.9,3855.2,6.224]
[1753109190682,2.59343373,3855.9,3855.3,4.267]
[1753109190909,2.59349551,3855.8,3855.3,4.267]
[1753109191213,0.8323,3856.7,3855.3,4.46063337]
[1753109191523,2.59376458,3855.4,3855.3,0.19363337]
[1753109191709,2.59375429,3855.5,3855.3,0.19363337]
[1753109191877,2.59329374,3856.1,3855.1,4.265]
[1753109192077,0.28756937,3856.0,3854.7,0.02594235]
[1753109192323,2.59389914,3855.2,3854.4,4.263]
[1753109192523,2.59414033,3854.9,3854.1,2.61462354]
[1753109192678,2.59423729,3854.7,3854.3,0.19128241]
[1753109193018,2.59437322,3854.5,3854.1,0.04594639]
[1753109193222,2.59424639,3854.7,3854.1,0.02]
[1753109193384,2.59415548,3854.9,3854.1,0.02]
[1753109193734,2.59432184,3854.6,3854.1,0.02]
[1753109193905,0.25941555,3854.9,3854.1,0.02]
[1753109194111,2.59439371,3854.5,3854.1,0.02]
[1753109194317,0.7825,3854.4,3854.1,0.02]
[1753109194516,0.2824,3855.6,3854.4,2.59440233]
[1753109194684,1.0649,3856.0,3854.5,0.0259437]
[1753109195025,2.59397646,3855.1,3854.5,0.02270796]
[1753109195182,0.25939765,3855.1,3854.1,0.21118947]
[1753109195383,2.59418503,3854.8,3854.1,0.21118947]
[1753109195577,3.37654536,3855.0,3854.1,0.02]
[1753109195801,2.59427968,3854.7,3854.1,0.02]
[1753109196002,2.72395045,3854.6,3854.1,0.02]
[1753109196202,0.1296,3854.6,3854.1,0.02]
[1753109196418,0.7825,3855.0,3854.1,0.02]
[1753109196419,2.59457215,3854.2,3854.1,0.02]
[1753109197199,3.15467649,3854.2,3854.1,0.02]
[1753109197404,4.24867649,3854.2,3854.1,0.02]
[1753109197693,3.96627649,3854.2,3854.1,0.02]
[1753109197911,0.8116,3854.2,3854.1,0.02]
[1753109198220,0.1296,3854.3,3854.1,0.02]
[1753109198601,2.59457215,3854.2,3854.1,0.02]
[1753109199122,2.7241213,3854.3,3854.1,0.02]
[1753109199310,2.87697215,3854.2,3854.1,0.02]
[1753109199500,3.17762936,3854.2,3854.1,0.02]
[1753109200428,0.58305721,3854.2,3854.1,0.02]
[1753109200588,2.89522936,3854.2,3854.1,0.02]
[1753109201426,3.17762936,3854.2,3854.1,0.02]
[1753109202118,0.8116,3854.6,3854.1,0.02]
[1753109202119,0.1296,3854.6,3854.1,0.02]
[1753109202285,0.1296,3854.9,3854.3,2.72408581]
[1753109202881,2.72374669,3854.9,3854.3,0.1296]
[1753109203089,0.5,3857.3,3854.3,0.1296]
[1753109203312,1.2313996,3857.9,3854.3,0.1296]
[1753109203313,0.01527108,3857.6,3856.4,2.593092]
[1753109203511,0.1296,3857.2,3856.4,2.722692]
[1753109203697,0.1296,3857.0,3856.4,2.722692]
[1753109204122,0.01527108,3857.6,3856.4,3.173792]
[1753109204327,0.1296,3857.3,3856.4,3.173792]
[1753109204622,0.01527108,3857.6,3856.7,2.59289029]
[1753109204829,0.14487108,3857.6,3856.7,2.59289029]
[1753109205212,0.1296,3857.0,3856.7,2.59289029]
[1753109205414,0.01527108,3857.6,3856.7,2.59289029]
[1753109205631,0.1296,3857.3,3856.7,2.91274686]
[1753109205813,0.1296,3857.5,3856.7,3.36384686]
[1753109206214,0.81477108,3857.6,3856.7,2.72249029]
[1753109206415,0.81477108,3857.6,3856.7,2.59289029]
[1753109206634,0.1296,3857.0,3856.7,2.59289029]
[1753109206994,0.81477108,3857.6,3856.7,3.06459029]
[1753109207195,0.1296,3857.5,3856.7,3.19419029]
[1753109208327,0.1296,3857.5,3856.7,0.1296]
[1753109208525,3.40707908,3857.6,3856.6,4.246]
[1753109208729,0.1296,3857.0,3856.4,0.1296]
[1753109208931,2.5930928,3856.4,3855.8,0.1296]
[1753109209127,2.72301942,3856.0,3855.3,4.3756]
[1753109209329,0.35045928,3856.3,3854.8,0.02594168]
[1753109209518,2.59329374,3856.1,3855.4,0.1296]
[1753109209719,2.72297328,3856.0,3855.4,0.1296]
[1753109209921,2.59362867,3855.7,3855.4,0.1296]
[1753109210117,0.1296,3856.0,3855.4,0.1296]
[1753109210712,0.1296,3856.0,3855.5,2.59369206]
[1753109211030,0.1296,3856.1,3855.4,0.1296]
[1753109211196,2.59341582,3856.0,3855.2,4.244]
[1753109211393,0.1296,3855.9,3855.2,4.3736]
[1753109211808,0.1296,3855.9,3855.2,0.1296]
[1753109212531,2.5935489,3855.8,3855.2,0.1296]
[1753109212737,0.53424517,3855.8,3855.2,0.1296]
[1753109213033,0.1296,3855.9,3854.6,0.8283]
[1753109213034,0.1296,3855.7,3855.0,0.1296]
[1753109213330,2.72316848,3855.7,3855.0,0.1296]
[1753109213534,2.59369014,3855.6,3855.0,0.1296]
[1753109213735,0.02593,3856.1,3854.6,0.8283]
[1753109213911,0.1296,3855.4,3854.8,4.244]
[1753109214107,0.40193099,3855.4,3854.7,0.1296]
[1753109214308,0.1296,3854.8,3854.1,3.73897514]
[1753109214534,0.1296,3854.8,3854.1,3.54458104]
[1753109214830,0.1296,3855.0,3854.3,2.72409986]
[1753109214993,0.1296,3855.0,3854.4,2.59441179]
[1753109215195,0.1296,3855.0,3854.3,0.1296]
[1753109215395,0.8224,3855.4,3854.1,0.8204]
[1753109215599,0.1296,3854.7,3854.1,5.195]
[1753109215801,0.1296,3854.7,3854.2,0.4717]
[1753109216013,0.1296,3854.7,3854.1,5.195]
[1753109216341,2.59396543,3855.2,3854.1,0.02]
[1753109216556,0.1296,3854.4,3854.1,0.02]
[1753109217241,0.1296,3854.4,3854.1,3.08630352]
[1753109217430,0.7518,3856.0,3854.3,0.9069]
[1753109217630,0.1296,3855.3,3854.4,4.7167]
[1753109217844,0.1296,3855.3,3854.6,0.1296]
[1753109218172,2.72343767,3855.3,3854.6,0.1296]
[1753109218360,2.59396643,3855.1,3854.1,0.02]
[1753109218645,0.27234377,3855.2,3854.1,0.02]
[1753109218646,0.7518,3855.0,3854.1,0.02]
[1753109219001,0.1296,3854.8,3854.2,0.1296]
[1753109219418,0.7518,3855.6,3854.2,0.02594572]
[1753109219643,0.1296,3855.2,3854.5,2.72391173]
[1753109219815,0.1296,3855.2,3854.5,2.72395032]
[1753109220005,0.1296,3855.2,3854.6,2.5942973]
[1753109220206,0.1296,3855.2,3854.5,0.1296]
[1753109220452,0.7518,3855.6,3854.1,2.61461308]
[1753109220453,2.59369731,3855.5,3854.1,2.61461308]
[1753109220634,0.1296,3854.9,3854.3,0.1296]
[1753109221234,2.59369731,3855.5,3854.3,0.02594504]
[1753109221447,0.02593,3856.1,3854.5,0.8234]
[1753109221758,0.02593,3856.1,3854.6,0.4717]
[1753109221910,0.02593,3856.1,3854.9,2.59408526]
[1753109222111,0.02593,3856.1,3854.9,4.249]
[1753109222342,2.59337139,3856.0,3855.1,2.59391369]
[1753109222555,0.6038463,3856.0,3855.0,0.4717]
[1753109222858,0.02593,3856.1,3854.5,0.8234]
[1753109223008,2.59343263,3855.9,3855.0,2.59399853]
[1753109223213,2.59343263,3855.9,3855.0,2.59402891]
[1753109223420,2.5933799,3856.0,3855.1,2.59395569]
[1753109223716,0.52125389,3855.9,3854.9,0.4717]
[1753109223919,2.61928955,3856.1,3854.9,3.06579443]
[1753109224118,2.59350525,3855.8,3854.9,0.4717]
[1753109224444,2.59365105,3855.6,3854.9,0.4717]
[1753109224917,0.02593,3856.1,3855.0,0.02594033]
[1753109225244,0.02593,3856.1,3854.9,0.4717]
[1753109225245,2.59368345,3855.6,3854.9,0.4717]
[1753109225423,2.59356584,3855.7,3854.9,0.4717]
[1753109225625,2.59363665,3855.6,3854.9,4.7177]
[1753109225825,2.59342732,3856.0,3854.9,4.7177]
[1753109226155,0.02593,3856.1,3855.4,2.59370181]
[1753109226356,2.61924122,3856.1,3855.0,0.4717]
[1753109226562,2.61924773,3856.1,3855.0,3.06572626]
[1753109226729,2.61924773,3856.1,3855.3,2.59381231]
[1753109227056,0.02593,3856.1,3855.5,2.59369731]
[1753109227258,0.02593,3856.1,3855.5,3.40579731]
[1753109227625,2.61923436,3856.1,3855.5,0.8121]
[1753109227827,0.02593,3856.1,3855.5,0.8121]
[1753109228233,2.61923387,3856.1,3855.5,0.8121]
[1753109228447,2.59336583,3856.0,3855.5,0.8121]
[1753109228623,0.52124649,3856.0,3855.0,0.7865]
[1753109228818,2.59382183,3855.4,3854.9,0.4717]
[1753109229056,0.02593,3856.1,3854.9,6.83505246]
[1753109229257,0.02593,3856.1,3855.0,0.4717]
[1753109229565,2.59360395,3855.7,3855.0,0.4717]
[1753109229777,0.51870503,3855.7,3854.2,0.4717]
[1753109229930,0.777,3856.0,3854.3,4.247]
[1753109230122,2.59395305,3855.2,3854.3,6.86743579]
[1753109230322,0.777,3856.0,3854.4,0.4717]
[1753109230537,2.59387755,3855.3,3854.5,0.0259437]
[1753109230857,2.59391667,3855.2,3854.5,0.0259437]
[1753109231159,0.777,3856.0,3854.6,0.4717]
[1753109231364,2.59403372,3855.0,3854.9,0.1296]
[1753109231731,2.59398749,3855.1,3854.9,0.1296]
[1753109231940,2.59403372,3855.0,3854.9,0.1296]
[1753109232684,2.59457215,3854.2,3854.1,0.021]
[1753109233350,0.1296,3854.3,3854.1,0.021]
[1753109233545,2.59457215,3854.2,3854.1,0.021]
[1753109234377,3.12643797,3854.2,3854.1,0.021]
[1753109234679,2.59457215,3854.2,3854.1,0.021]
[1753109234882,0.769,3855.0,3854.1,0.4927]
[1753109235044,2.59457215,3854.2,3854.1,0.021]
[1753109236555,3.36307215,3854.2,3854.1,0.021]
[1753109237285,3.36307215,3854.2,3854.1,1e-08]
[1753109237581,3.95882665,3854.2,3854.1,1e-08]
[1753109239383,8.19582665,3854.2,3854.1,1e-08]
[1753109239582,3.95882665,3854.2,3854.1,1e-08]
[1753109239788,8.19482665,3854.2,3854.1,1e-08]
[1753109242155,22.69482665,3854.2,3854.1,1e-08]
[1753109242356,3.37707612,3853.6,3853.5,1e-08]
[1753109242580,8.20527302,3853.6,3853.5,1e-08]
[1753109243953,8.20227302,3853.6,3853.5,1e-08]
[1753109244850,3.97427302,3853.6,3853.5,1e-08]
[1753109245094,7.60307612,3853.6,3853.5,1e-08]
[1753109245764,3.37707612,3853.6,3853.5,1e-08]
[1753109245949,7.60207612,3853.6,3853.5,1e-08]
[1753109246151,14.5,3854.0,3853.5,1e-08]
[1753109246365,0.1296,3853.6,3853.5,1e-08]
[1753109246967,2.72457612,3853.6,3853.5,1e-08]
[1753109247661,6.95257612,3853.6,3853.5,1e-08]
[1753109248240,0.1296,3853.8,3853.5,0.44220001]
[1753109248356,0.1296,3853.8,3853.6,0.4422]
[1753109248787,0.1296,3853.8,3853.7,0.4422]
[1753109250196,0.002,3854.2,3853.7,0.5718]
[1753109250504,4.47340194,3856.0,3853.5,2.5950289]
[1753109250505,0.69676047,3857.7,3854.5,0.7706]
[1753109250715,2.59377546,3855.4,3854.6,0.7706]
[1753109250858,0.25937755,3855.4,3854.6,0.7706]
[1753109251054,4.31,3855.4,3854.6,0.7706]
[1753109251267,0.1296,3855.0,3854.6,0.7706]
[1753109251677,0.1296,3855.0,3854.6,1.2128]
[1753109251962,2.59415635,3854.9,3854.6,1.2128]
[1753109252175,2.59417955,3854.8,3854.6,1.2128]
[1753109252363,0.1296,3855.0,3854.7,0.4422]
[1753109252675,0.002,3855.8,3854.7,0.70604]
[1753109252676,2.59370482,3855.5,3854.7,0.70604]
[1753109252860,0.1296,3855.5,3854.1,0.4622]
[1753109253059,2.59437021,3854.5,3853.6,0.4422]
[1753109253315,2.72450878,3853.7,3853.6,0.4422]
[1753109255790,0.1296,3853.7,3853.6,0.4422]
[1753109256603,0.1296,3854.3,3853.6,0.5718]
[1753109256786,0.1296,3854.5,3853.8,0.1296]
[1753109256995,0.1296,3854.5,3853.9,0.4422]
[1753109257512,6.90024984,3854.7,3854.0,0.31666477]
[1753109257700,4.4356,3854.7,3854.1,0.1296]
[1753109258006,7.02884986,3854.7,3854.2,0.4422]
[1753109258180,2.59430627,3854.6,3854.3,0.4422]
[1753109258412,4.305,3854.9,3854.4,0.4422]
[1753109258731,2.59430291,3854.6,3854.1,0.1296]
[1753109258894,2.59437021,3854.5,3854.1,0.1296]
[1753109259097,0.1296,3854.7,3854.1,0.1296]
[1753109259098,2.59430291,3854.6,3854.1,0.1296]
[1753109259524,2.59437021,3854.5,3854.1,0.5718]
[1753109259723,2.59437196,3854.5,3854.1,0.5718]
[1753109259941,2.59452022,3854.3,3854.1,0.5718]
[1753109261036,2.59452565,3854.3,3854.1,0.5718]
[1753109261236,2.59443166,3854.5,3854.2,0.4422]
[1753109261545,2.59445064,3854.4,3854.2,0.4422]
[1753109261929,0.1296,3854.7,3854.3,0.4422]
[1753109262113,2.59394491,3855.2,3854.4,1.2704]
[1753109262413,0.1296,3855.2,3854.5,0.5718]
[1753109262610,0.25939449,3855.1,3854.1,0.4422]
[1753109262815,4.291,3855.0,3854.1,0.4422]
[1753109263062,2.59457215,3854.2,3854.1,0.4422]
[1753109263761,4.29,3854.7,3854.1,0.4422]
[1753109264118,2.59444519,3854.4,3854.1,0.4422]
[1753109264318,2.59430291,3854.6,3853.8,0.8282]
[1753109264319,2.59454981,3854.3,3853.8,0.8282]
[1753109264536,2.59454981,3854.3,3853.9,0.4422]
[1753109264537,2.59452102,3854.3,3853.9,0.4422]
[1753109264731,4.287,3854.9,3853.9,0.4422]
[1753109264934,0.45463945,3854.8,3853.9,0.4422]
[1753109265135,2.59431233,3854.6,3853.9,0.4422]
[1753109265420,2.59478213,3853.9,3853.5,0.44220001]
[1753109265620,2.59437021,3854.5,3853.6,0.4422]
[1753109265845,2.59493288,3853.7,3853.5,1e-08]
[1753109266257,2.59497612,3853.6,3853.5,1e-08]
[1753109266622,2.59492085,3853.7,3853.5,1e-08]
[1753109266824,2.59497612,3853.6,3853.5,1e-08]
[1753109267072,2.59497612,3853.6,3853.5,0.43710001]
[1753109267251,2.59497612,3853.6,3853.5,1e-08]
[1753109268583,3.54186011,3853.6,3853.5,1e-08]
[1753109268985,2.59524551,3853.2,3853.1,1e-08]
[1753109269284,6.87224551,3853.2,3853.1,1e-08]
[1753109269484,6.87124551,3853.2,3853.1,1e-08]
[1753109269686,2.59524551,3853.2,3853.1,1e-08]
[1753109270263,3.54208614,3853.2,3853.1,1e-08]
[1753109270477,2.59524551,3853.2,3853.1,1e-08]
[1753109270781,6.87324551,3853.2,3853.1,1e-08]
[1753109270946,4.278,3853.2,3853.1,0.43710001]
[1753109271151,2.59524551,3853.2,3853.1,0.43710001]
[1753109271492,4.279,3853.4,3853.1,0.43710001]
[1753109271690,2.59524551,3853.2,3853.1,1e-08]
[1753109274001,6.87024551,3853.2,3853.1,1e-08]
[1753109274163,2.72482579,3853.3,3853.1,0.43710001]
[1753109274356,2.59524551,3853.2,3853.1,1e-08]
[1753109274600,2.59516138,3853.4,3853.1,1e-08]
[1753109274810,6.8659769,3853.6,3853.2,0.7503]
[1753109274962,0.1296,3853.7,3853.3,0.4371]
[1753109275162,2.59471794,3854.0,3853.5,0.1296]
[1753109275496,2.5946507,3854.1,3853.6,0.4371]
[1753109275692,0.1296,3854.3,3853.6,0.4371]
[1753109275905,2.59459607,3854.2,3853.6,0.4371]
[1753109276107,0.1296,3854.3,3853.6,0.4371]
[1753109276303,2.59464942,3854.1,3853.6,0.4371]
[1753109276611,2.59469625,3854.1,3853.7,0.31617636]
[1753109277132,2.7241144,3854.3,3853.8,0.4371]
[1753109277296,2.7241144,3854.3,3853.7,0.31617636]
[1753109277297,2.5945144,3854.3,3853.9,0.5667]
[1753109277487,4.265,3854.4,3854.0,0.4371]
[1753109277687,2.59461914,3854.2,3854.0,0.4371]
[1753109277888,2.59461914,3854.2,3854.1,0.4371]
[1753109278290,2.59457215,3854.2,3854.1,0.4371]
[1753109278505,0.7889,3854.9,3854.1,0.4371]
[1753109278506,1e-08,3855.9,3855.8,2.59349551]
[1753109278688,0.02,3856.9,3855.8,2.59349551]
[1753109278689,0.02,3856.9,3856.7,2.59289029]
[1753109278888,0.02,3856.9,3855.9,5.52833428]
[1753109279233,0.02,3856.9,3856.4,2.59306959]
[1753109279398,0.02,3856.9,3855.6,4.273]
[1753109279598,0.02,3856.9,3855.9,0.4371]
[1753109279832,0.02,3856.9,3856.0,2.59336099]
[1753109280005,0.02,3856.9,3856.1,2.59329374]
[1753109280183,0.02,3856.9,3855.9,0.4371]
[1753109280603,0.02,3856.9,3856.4,2.59304553]
[1753109280890,0.02,3856.9,3855.7,2.59356277]
[1753109281205,0.02,3856.9,3856.2,2.59322465]
[1753109281405,0.26347043,3856.8,3856.0,2.59329374]
[1753109281598,2.85631154,3856.8,3855.7,0.4371]
[1753109281792,0.26347043,3856.8,3855.7,0.4371]
[1753109281996,0.26347043,3856.8,3856.1,2.59327473]
[1753109282206,0.002,3856.8,3855.6,3.03066668]
[1753109282409,0.002,3856.8,3855.6,0.4371]
[1753109282724,2.59350657,3855.8,3855.6,0.4371]
[1753109282926,2.59383186,3855.3,3855.0,0.7877]